bitfinex/quotes_BTCUSD_20251114
["timestamp","ask_amount","ask_price","bid_price","bid_amount"]
[1763132181881,0.01,96570.0,96558.0,0.02071299]
[1763132182106,0.01,96550.0,96540.0,0.0103584]
[1763132182519,0.01035518,96570.0,96540.0,0.0103584]
[1763132182520,0.01,96560.0,96552.0,0.20714185]
[1763132182742,0.01937523,96559.0,96555.0,0.20713389]
[1763132182937,0.02233882,96574.0,96553.0,0.02071419]
[1763132183139,0.02906169,96573.0,96572.0,0.20709936]
[1763132183373,0.00113596,96576.0,96575.0,0.20709293]
[1763132183571,0.00013596,96576.0,96575.0,0.20709293]
[1763132184528,0.00113596,96576.0,96575.0,0.20709293]
[1763132184667,0.00113596,96576.0,96563.0,0.01059583]
[1763132184878,0.00013596,96576.0,96574.0,0.2070934]
[1763132185082,0.00113596,96576.0,96561.0,0.323]
[1763132185293,0.01,96570.0,96543.0,0.691126]
[1763132185497,0.01,96570.0,96551.0,0.10479654]
[1763132185700,0.01,96570.0,96541.0,0.50142]
[1763132185948,0.01,96560.0,96542.0,0.20716372]
[1763132186138,0.01,96560.0,96540.0,0.0103584]
[1763132186139,0.01,96560.0,96541.0,0.20716586]
[1763132186341,0.01,96560.0,96555.0,0.20713437]
[1763132186577,0.05,96575.0,96574.0,0.20709507]
[1763132186860,0.05,96575.0,96572.0,0.20709805]
[1763132187065,0.05,96575.0,96557.0,0.0898652]
[1763132187265,0.05,96575.0,96573.0,0.20709615]
[1763132187724,0.0002,96580.0,96575.0,0.20709293]
[1763132187922,0.0002,96580.0,96550.0,0.01035732]
[1763132187923,0.01,96570.0,96550.0,0.01035732]
[1763132188122,0.01,96570.0,96569.0,0.20710579]
[1763132188325,0.002,96575.0,96574.0,0.20709507]
[1763132189121,0.01,96570.0,96568.0,0.20710773]
[1763132189292,0.01,96570.0,96568.0,0.2071072]
[1763132189709,0.01,96570.0,96568.0,0.26924047]
[1763132190312,0.011,96570.0,96568.0,0.26924047]
[1763132190533,0.061,96570.0,96568.0,0.26924047]
[1763132191298,0.051,96570.0,96568.0,0.26924047]
[1763132191987,0.051,96570.0,96568.0,0.2071072]
[1763132192458,0.051,96570.0,96568.0,0.2071069]
[1763132192658,0.05,96570.0,96568.0,0.2071069]
[1763132193072,0.05,96570.0,96569.0,0.10479654]
[1763132193428,0.00013596,96576.0,96569.0,0.10479654]
[1763132193429,0.00013596,96576.0,96575.0,0.20709293]
[1763132193626,0.00013596,96576.0,96575.0,0.25913338]
[1763132193832,0.00013596,96576.0,96575.0,0.58213338]
[1763132194267,0.0002,96580.0,96579.0,0.25192309]
[1763132194268,1e-08,96580.0,96579.0,0.25192309]
[1763132194480,0.0002,96610.0,96609.0,0.20702004]
[1763132194689,1e-08,96610.0,96609.0,0.93527958]
[1763132194915,1e-08,96610.0,96609.0,0.97727832]
[1763132195069,1e-08,96610.0,96609.0,1.02931877]
[1763132195290,1e-08,96610.0,96609.0,0.96268066]
[1763132195713,1e-08,96610.0,96609.0,1.04160805]
[1763132195920,1e-08,96610.0,96609.0,0.84752223]
[1763132196128,1e-08,96610.0,96609.0,0.13002004]
[1763132196344,1e-08,96610.0,96609.0,0.63113978]
[1763132196787,1e-08,96610.0,96609.0,0.64154218]
[1763132197838,1e-08,96610.0,96609.0,0.64254218]
[1763132198049,1e-08,96610.0,96609.0,0.74621156]
[1763132198258,1e-08,96610.0,96609.0,0.74763156]
[1763132198467,1e-08,96610.0,96609.0,0.89281156]
[1763132198897,0.04664,96682.0,96669.0,0.20689155]
[1763132199125,0.00065271,96670.0,96669.0,0.01151657]
[1763132199334,0.00226608,96670.0,96665.0,0.20689886]
[1763132199548,0.00065271,96670.0,96669.0,0.20689155]
[1763132199757,0.00065271,96670.0,96669.0,0.22758071]
[1763132199956,0.00226608,96670.0,96669.0,0.20689155]
[1763132200217,0.00626608,96670.0,96669.0,0.20689155]
[1763132200411,0.00426608,96670.0,96669.0,0.20689155]
[1763132200648,0.00426608,96670.0,96667.0,0.20689581]
[1763132200872,0.01065271,96670.0,96667.0,0.20689581]
[1763132201042,0.01165271,96670.0,96663.0,0.20690439]
[1763132201202,0.01165271,96670.0,96666.0,0.20689631]
[1763132201405,0.01165271,96670.0,96650.0,0.57636483]
[1763132201406,0.00165271,96670.0,96668.0,0.20689165]
[1763132201662,0.00165271,96670.0,96651.0,0.06825814]
[1763132201974,0.01,96660.0,96659.0,0.20691106]
[1763132202185,0.20690609,96663.0,96643.0,0.20694611]
[1763132202386,0.01,96660.0,96656.0,0.20691744]
[1763132202561,0.01,96660.0,96657.0,0.20691592]
[1763132202811,0.02073539,96663.0,96630.0,0.11514529]
[1763132203017,0.01,96660.0,96633.0,0.20696739]
[1763132203216,0.20692261,96655.0,96630.0,0.69027809]
[1763132203424,0.20693842,96648.0,96631.0,0.06902781]
[1763132203628,0.01,96640.0,96631.0,0.06902781]
[1763132203833,0.01,96640.0,96630.0,0.01034875]
[1763132203834,0.01,96640.0,96638.0,0.20695602]
[1763132204039,0.06359,96639.0,96610.0,0.58671572]
[1763132204266,0.06359,96639.0,96633.0,0.20696689]
[1763132204680,0.06359,96639.0,96634.0,0.20696543]
[1763132204887,0.06359,96639.0,96633.0,0.20696689]
[1763132204888,0.06404243,96639.0,96633.0,0.20696689]
[1763132205093,0.06404243,96639.0,96615.0,0.20700719]
[1763132205300,0.00045243,96639.0,96620.0,0.57636483]
[1763132205549,0.00045243,96639.0,96634.0,0.20696608]
[1763132205770,0.00045243,96639.0,96637.0,0.20695904]
[1763132206166,0.00045243,96639.0,96616.0,0.10366938]
[1763132206167,0.06359,96638.0,96616.0,0.10366938]
[1763132206322,0.01,96630.0,96617.0,0.22770319]
[1763132206525,0.01,96620.0,96590.0,0.01035303]
[1763132206785,0.01,96610.0,96608.0,0.20702133]
[1763132206929,0.01,96620.0,96609.0,0.020702]
[1763132207130,0.01,96620.0,96619.0,0.20699862]
[1763132207336,0.01,96620.0,96600.0,0.01035196]
[1763132207716,0.01,96610.0,96604.0,0.20702916]
[1763132207955,0.20702004,96609.0,96604.0,0.20702916]
[1763132208178,0.01,96610.0,96581.0,0.5]
[1763132208390,0.01,96610.0,96608.0,0.20702024]
[1763132209213,0.01,96610.0,96606.0,0.20702211]
[1763132209425,0.001,96609.0,96608.0,0.20702096]
[1763132209636,0.001,96610.0,96608.0,0.20702096]
[1763132209872,0.001,96610.0,96609.0,0.04140431]
[1763132210075,0.001,96610.0,96608.0,0.16702096]
[1763132210291,0.01,96630.0,96621.0,0.20699363]
[1763132210472,0.01,96630.0,96628.0,0.20697934]
[1763132211434,0.01045243,96630.0,96628.0,0.20697934]
[1763132211660,0.00045243,96630.0,96629.0,0.10349017]
[1763132211870,0.00045243,96630.0,96611.0,0.20701576]
[1763132212046,0.06359,96611.0,96572.0,0.131613]
[1763132212403,0.323,96627.0,96570.0,0.03035516]
[1763132212404,0.01,96600.0,96580.0,0.01035411]
[1763132212560,0.01,96600.0,96597.0,0.20704564]
[1763132213013,0.01,96590.0,96580.0,0.01035411]
[1763132213204,0.03209,96598.0,96581.0,0.22778592]
[1763132213576,0.01,96580.0,96570.0,0.01035518]
[1763132213779,0.01,96580.0,96577.0,0.207088]
[1763132213890,0.01,96580.0,96579.0,0.20708435]
[1763132214120,0.00972,96580.0,96579.0,0.20708435]
[1763132214731,0.10479654,96606.0,96597.0,0.20704576]
[1763132214948,0.10479654,96606.0,96570.0,0.58685577]
[1763132214949,0.09568,96598.0,96582.0,0.20707597]
[1763132215163,0.00972,96590.0,96589.0,0.207061]
[1763132216081,0.00972,96590.0,96588.0,0.20706475]
[1763132216554,0.01072,96590.0,96588.0,0.20706475]
[1763132216774,0.001,96590.0,96588.0,0.20706475]
[1763132216996,0.001,96590.0,96588.0,0.14706475]
[1763132217463,0.20709971,96572.0,96570.0,0.00013576]
[1763132217715,0.04664,96571.0,96570.0,0.00013576]
[1763132218573,0.04664,96581.0,96577.0,0.20708813]
[1763132218791,0.001,96572.0,96570.0,0.00013576]
[1763132219018,0.00972,96580.0,96575.0,0.20709173]
[1763132219283,0.20710151,96571.0,96570.0,0.00013576]
[1763132219507,0.59569151,96571.0,96570.0,0.00013576]
[1763132219726,0.20712724,96559.0,96552.0,0.20714132]
[1763132219950,0.323,96574.0,96552.0,0.02085009]
[1763132220163,0.00972,96570.0,96555.0,0.20713436]
[1763132220385,0.00972,96560.0,96552.0,0.00013596]
[1763132220575,0.001,96572.0,96571.0,0.20710151]
[1763132220850,0.001,96572.0,96552.0,0.02085018]
[1763132220851,0.00972,96570.0,96569.0,0.20710415]
[1763132221050,0.09974,96571.0,96552.0,0.00013596]
[1763132221253,0.20713955,96554.0,96552.0,0.00013596]
[1763132221384,0.02727,96553.0,96552.0,0.00013596]
[1763132222173,0.323,96519.0,96500.0,0.01036269]
[1763132222375,0.00972,96510.0,96500.0,0.01036269]
[1763132222660,0.00972,96510.0,96501.0,0.13873654]
[1763132222840,0.00013551,96519.0,96517.0,0.20721529]
[1763132223280,0.00113551,96519.0,96517.0,0.20721529]
[1763132223675,0.00113551,96519.0,96518.0,0.12551806]
[1763132224023,0.00113551,96519.0,96518.0,0.05751806]
[1763132224304,0.00113551,96519.0,96517.0,0.20721529]
[1763132224506,0.00013551,96519.0,96518.0,0.01034688]
[1763132224719,0.00113551,96519.0,96518.0,0.01034688]
[1763132224993,0.00113551,96519.0,96518.0,0.11514342]
[1763132225149,0.00113551,96519.0,96518.0,0.15856196]
[1763132225357,0.00013551,96519.0,96518.0,0.15674994]
[1763132225586,0.00013551,96519.0,96518.0,0.77018894]
[1763132225761,0.20707723,96583.0,96550.0,0.58672215]
[1763132225961,0.00972,96570.0,96569.0,0.20710579]
[1763132226347,0.04677583,96581.0,96580.0,0.20708221]
[1763132226547,0.00013583,96581.0,96575.0,0.20709192]
[1763132226794,0.00013583,96581.0,96560.0,0.01035625]
[1763132226795,0.04536,96576.0,96565.0,0.20711377]
[1763132227130,0.00972,96570.0,96568.0,0.20710726]
[1763132227334,0.01858136,96575.0,96568.0,0.20710726]
[1763132227536,0.04536,96578.0,96566.0,0.021747]
[1763132227815,0.0165825,96577.0,96569.0,0.20710449]
[1763132227955,0.05,96570.0,96569.0,0.20710449]
[1763132228372,0.05,96570.0,96568.0,0.20710613]
[1763132228578,0.05972,96570.0,96560.0,0.20712474]
[1763132228942,0.05972,96570.0,96538.0,0.03381]
[1763132228943,0.02588822,96569.0,96538.0,0.03381]
[1763132229073,0.00972,96550.0,96538.0,0.03381]
[1763132229280,0.09276,96568.0,96548.0,0.20714967]
[1763132229484,0.00972,96560.0,96559.0,0.20712722]
[1763132229946,0.00972,96560.0,96550.0,0.57636483]
[1763132230179,0.00972,96560.0,96558.0,0.20712753]
[1763132230449,0.00985578,96560.0,96557.0,0.20712947]
[1763132230661,0.01035947,96530.0,96490.0,0.57636483]
[1763132230898,0.01036054,96520.0,96490.0,0.57636483]
[1763132231109,0.00972,96500.0,96480.0,0.57676483]
[1763132231314,0.00972,96490.0,96470.0,0.20731755]
[1763132231515,0.01036269,96500.0,96478.0,0.20729925]
[1763132231516,0.00972,96480.0,96478.0,0.20729925]
[1763132231736,0.20729899,96479.0,96460.0,0.01036699]
[1763132231945,0.09276,96479.0,96478.0,0.00045316]
[1763132232153,0.04925,96479.0,96478.0,0.00045316]
[1763132232326,0.00972,96490.0,96478.0,0.00045316]
[1763132232524,0.00972,96490.0,96489.0,0.20727751]
[1763132232955,0.09276,96507.0,96506.0,0.207241]
[1763132233088,0.09276,96498.0,96497.0,0.20726032]
[1763132233492,0.03946,96511.0,96480.0,0.57636483]
[1763132233493,0.03946,96511.0,96480.0,0.01036484]
[1763132233696,0.00972,96500.0,96497.0,0.20725907]
[1763132233894,0.09276,96510.0,96499.0,0.20725603]
[1763132234098,0.09276,96510.0,96480.0,0.21765954]
[1763132234295,0.2169739,96500.0,96493.0,0.20726765]
[1763132234555,0.00972,96490.0,96489.0,0.20727583]
[1763132234769,0.00972,96490.0,96486.0,0.20728214]
[1763132234955,0.001,96500.0,96475.0,0.20730723]
[1763132234956,0.323,96494.0,96475.0,0.20730723]
[1763132235182,0.04925,96479.0,96470.0,0.01036591]
[1763132235387,0.25654899,96479.0,96473.0,0.20731015]
[1763132235584,0.04925,96479.0,96471.0,0.20731559]
[1763132235778,0.04925,96479.0,96478.0,0.2077543]
[1763132236632,0.09276,96487.0,96478.0,0.2077543]
[1763132236854,0.00972,96490.0,96489.0,0.20727751]
[1763132237067,0.09276,96499.0,96497.0,0.20726032]
[1763132237278,0.09276,96499.0,96480.0,0.01036484]
[1763132237279,0.09276,96512.0,96510.0,0.20723241]
[1763132237500,0.09276,96523.0,96510.0,0.20723241]
[1763132237703,0.09276,96523.0,96500.0,0.78361871]
[1763132237704,0.09276,96523.0,96522.0,0.20720664]
[1763132238525,0.09276,96523.0,96501.0,0.20725173]
[1763132238764,0.001,96511.0,96502.0,0.20724959]
[1763132239009,0.001,96511.0,96501.0,0.00045316]
[1763132239216,0.00972,96510.0,96508.0,0.20723522]
[1763132239470,0.00972,96510.0,96509.0,0.20723272]
[1763132239693,0.001,96511.0,96510.0,0.20723241]
[1763132240164,0.001,96511.0,96501.0,0.00045316]
[1763132240386,0.09276,96510.0,96501.0,0.00045316]
[1763132240611,0.37225,96502.0,96501.0,0.00045316]
[1763132240834,0.37225,96502.0,96501.0,3.16e-06]
[1763132241088,0.37225,96502.0,96460.0,0.58673182]
[1763132241089,0.00972,96470.0,96460.0,0.58673182]
[1763132241300,0.00972,96470.0,96469.0,0.20732048]
[1763132241746,0.00972,96470.0,96468.0,0.2073215]
[1763132242844,0.09276,96487.0,96486.0,0.20728395]
[1763132243068,0.09276,96487.0,96460.0,0.0105025]
[1763132243069,0.09276,96487.0,96482.0,0.20729152]
[1763132243325,0.09276,96487.0,96485.0,0.2072842]
[1763132243563,0.09276,96487.0,96484.0,0.20728648]
[1763132243786,0.00972,96480.0,96478.0,0.20730006]
[1763132244010,0.21701705,96480.0,96460.0,0.58804543]
[1763132244234,0.10248,96480.0,96478.0,0.20729926]
[1763132244493,0.00972,96480.0,96479.0,0.00194064]
[1763132244965,0.001,96487.0,96479.0,0.00194064]
[1763132244966,0.001,96487.0,96485.0,0.20728415]
[1763132245458,0.8675362,96520.0,96498.0,0.20725766]
[1763132245459,0.00972,96500.0,96498.0,0.20725766]
[1763132245672,0.00972,96500.0,96498.0,0.13025766]
[1763132246365,0.04925,96502.0,96501.0,0.20725173]
[1763132246594,0.04925,96502.0,96496.0,0.20725715]
[1763132246818,0.00972,96490.0,96480.0,0.01036484]
[1763132247049,0.01386228,96501.0,96480.0,0.01036484]
[1763132247050,0.02492351,96500.0,96499.0,0.20725603]
[1763132247272,0.06507029,96502.0,96501.0,0.20725173]
[1763132247490,0.09276,96501.0,96498.0,0.20725753]
[1763132247720,0.09276,96501.0,96499.0,0.2072547]
[1763132247933,0.03562673,96500.0,96482.0,0.0962337]
[1763132248156,0.03562673,96500.0,96490.0,0.20727429]
[1763132248396,0.20725882,96498.0,96480.0,0.01036484]
[1763132248594,0.017547,96497.0,96489.0,0.20727623]
[1763132248895,0.02487644,96496.0,96495.0,0.20726317]
[1763132249308,0.09276,96498.0,96497.0,0.20726032]
[1763132249520,0.00972,96500.0,96499.0,0.20725603]
[1763132249732,0.20725693,96499.0,96480.0,0.85754051]
[1763132249959,0.01455599,96498.0,96497.0,0.20726032]
[1763132250176,0.01072,96500.0,96497.0,0.20726032]
[1763132250397,0.001,96500.0,96499.0,0.20725603]
[1763132250608,0.04970251,96502.0,96499.0,0.20725603]
[1763132250609,0.04970251,96502.0,96501.0,0.20725173]
[1763132250816,0.04970251,96502.0,96488.0,0.84717567]
[1763132250817,0.001,96499.0,96495.0,0.20726358]
[1763132250999,0.002,96499.0,96498.0,0.20725818]
[1763132251280,0.04239125,96499.0,96480.0,0.01036484]
[1763132251495,0.001,96499.0,96481.0,0.10479654]
[1763132251712,0.001,96500.0,96498.0,0.20725818]
[1763132251921,0.001,96500.0,96499.0,0.20725603]
[1763132252348,0.001,96500.0,96480.0,0.85754051]
[1763132252478,0.00972,96500.0,96499.0,0.20725603]
[1763132252678,0.04970251,96502.0,96481.0,0.08575405]
[1763132252905,0.001,96499.0,96497.0,0.20725994]
[1763132253107,0.00972,96500.0,96499.0,0.20725603]
[1763132253282,0.00972,96500.0,96498.0,0.20725685]
[1763132253618,0.05698,96498.0,96496.0,0.20726118]
[1763132253838,0.0733709,96498.0,96496.0,0.20726118]
[1763132254044,0.00972,96500.0,96499.0,0.20725603]
[1763132254240,0.01072,96500.0,96499.0,0.20725603]
[1763132254443,0.27495388,96500.0,96468.0,0.323]
[1763132254645,0.00972,96490.0,96489.0,0.20727751]
[1763132255059,0.06613,96490.0,96489.0,0.20727751]
[1763132255274,0.06613,96490.0,96487.0,0.20728086]
[1763132255409,0.00113,96489.0,96487.0,0.2072807]
[1763132256006,0.09342,96496.0,96494.0,0.20726677]
[1763132256210,0.09342,96496.0,96490.0,0.20727485]
[1763132256425,0.05698,96494.0,96493.0,0.20726892]
[1763132256627,0.09342,96496.0,96494.0,0.20726677]
[1763132256628,0.0259078,96496.0,96494.0,0.20726677]
[1763132256838,0.06109,96494.0,96480.0,0.84717567]
[1763132257043,0.00972,96490.0,96487.0,0.20727943]
[1763132257265,0.00972,96490.0,96488.0,0.20727905]
[1763132257448,0.00972,96490.0,96489.0,0.00167091]
[1763132257903,0.03025199,96500.0,96489.0,0.00167091]
[1763132258111,0.025907,96499.0,96498.0,0.20725656]
[1763132258766,0.025907,96499.0,96480.0,0.84717567]
[1763132258968,0.025907,96499.0,96497.0,0.20726014]
[1763132259171,0.025907,96499.0,96480.0,0.84717567]
[1763132259325,0.025907,96499.0,96496.0,0.20726217]
[1763132259544,0.025907,96499.0,96497.0,0.20726012]
[1763132259749,0.025907,96499.0,96498.0,0.20725818]
[1763132260009,0.04970251,96502.0,96480.0,0.84717567]
[1763132260150,0.001,96499.0,96481.0,0.08471757]
[1763132260352,0.00972,96500.0,96499.0,0.20725603]
[1763132260736,0.00972,96500.0,96482.0,0.31208909]
[1763132260737,0.001,96499.0,96475.0,0.20730657]
[1763132260941,0.001,96499.0,96498.0,0.20725818]
[1763132261379,0.05908,96499.0,96477.0,0.20730329]
[1763132261588,0.05908,96499.0,96497.0,0.2072591]
[1763132261788,0.09305,96498.0,96495.0,0.20726229]
[1763132262006,0.05908,96499.0,96498.0,0.20725818]
[1763132262209,0.002,96499.0,96498.0,0.20725818]
[1763132262387,0.05844,96499.0,96494.0,0.20726578]
[1763132262593,0.01835296,96498.0,96495.0,0.20726412]
[1763132262863,0.05652,96495.0,96493.0,0.20726848]
[1763132263161,0.00972,96490.0,96489.0,0.20727705]
[1763132263298,0.37215,96510.0,96501.0,0.20725173]
[1763132263503,0.06949251,96502.0,96501.0,0.20725173]
[1763132263933,0.00045251,96502.0,96501.0,0.20725173]
[1763132264341,0.12657251,96502.0,96500.0,0.20725369]
[1763132264544,0.06949251,96502.0,96500.0,0.20725369]
[1763132265146,0.06904,96501.0,96500.0,0.20725369]
[1763132265767,0.06904,96501.0,96499.0,0.20725368]
[1763132267062,0.06904,96501.0,96499.0,0.13025368]
[1763132268947,0.00045251,96502.0,96501.0,0.20725173]
[1763132269172,0.06949251,96502.0,96501.0,0.20725173]
[1763132269373,0.06949251,96502.0,96501.0,0.20859906]
[1763132269976,0.13058251,96502.0,96501.0,0.00134733]
[1763132271469,0.06945251,96502.0,96501.0,0.00134733]
[1763132271924,0.12653251,96502.0,96501.0,0.00134733]
[1763132272220,0.14520716,96502.0,96501.0,0.00134733]
[1763132272456,0.12653251,96502.0,96501.0,0.00134733]
[1763132272730,0.14282321,96502.0,96501.0,0.00134733]
[1763132273030,0.12653251,96502.0,96501.0,0.00134733]
[1763132274107,0.12653251,96502.0,96500.0,0.1375999]
[1763132275151,0.069,96501.0,96500.0,0.1375999]
[1763132275552,0.069,96501.0,96496.0,0.20726105]
[1763132275748,0.00972,96500.0,96499.0,0.20725511]
[1763132276773,0.07872,96500.0,96499.0,0.20725511]
[1763132277598,0.07872,96500.0,96495.0,0.20726341]
[1763132277599,0.12619,96500.0,96495.0,0.20726341]
[1763132277799,0.12619,96500.0,96480.0,0.85754051]
[1763132277800,0.00972,96490.0,96489.0,0.20727751]
[1763132277999,0.07872,96490.0,96489.0,0.20727751]
[1763132279570,0.069,96490.0,96489.0,0.20727751]
[1763132279772,0.00972,96500.0,96498.0,0.20725818]
[1763132279978,0.069,96499.0,96498.0,0.20725818]
[1763132280178,0.11024,96499.0,96498.0,0.20725818]
[1763132281549,0.06945251,96502.0,96501.0,0.19242885]
[1763132281983,0.00045251,96502.0,96501.0,0.19242885]
[1763132282216,0.00045251,96502.0,96501.0,0.20278465]
[1763132282460,0.00045251,96502.0,96501.0,0.51542885]
[1763132283031,0.00045251,96502.0,96501.0,0.13025173]
[1763132285645,0.00045251,96502.0,96501.0,0.14060753]
[1763132285871,0.20714295,96552.0,96501.0,0.14060753]
[1763132285872,0.09253,96546.0,96540.0,0.20716801]
[1763132286159,0.11825,96541.0,96540.0,0.20716801]
[1763132286363,0.04925,96541.0,96540.0,0.20716801]
[1763132286576,0.00202465,96560.0,96549.0,0.2071487]
[1763132286577,0.00972,96550.0,96549.0,0.2071487]
[1763132286756,0.00985578,96550.0,96549.0,0.2071487]
[1763132286954,0.00013578,96550.0,96549.0,0.2071487]
[1763132287200,0.06913578,96550.0,96549.0,0.2071487]
[1763132287405,0.00013578,96550.0,96549.0,0.2071487]
[1763132287627,0.00202465,96560.0,96559.0,0.20712724]
[1763132287860,0.00202465,96560.0,96559.0,0.24106724]
[1763132288434,0.00202465,96560.0,96559.0,0.16406724]
[1763132288639,0.00202465,96560.0,96559.0,0.54490017]
[1763132289353,0.00202465,96560.0,96559.0,0.54590017]
[1763132289722,0.00202465,96560.0,96559.0,0.54490017]
[1763132290118,0.04956,96597.0,96559.0,0.54490017]
[1763132290119,0.04956,96597.0,96596.0,0.20704791]
[1763132290339,0.06909576,96597.0,96596.0,0.20704791]
[1763132290552,0.00013576,96597.0,96596.0,0.25188372]
[1763132290977,0.00013576,96597.0,96596.0,0.57488372]
[1763132291415,0.00013576,96597.0,96596.0,0.61830246]
[1763132291679,1e-08,96597.0,96596.0,0.68154246]
[1763132291888,1e-08,96597.0,96596.0,0.61830246]
[1763132292105,0.0012,96600.0,96599.0,0.53004148]
[1763132292327,0.00165235,96600.0,96599.0,0.53004148]
[1763132292583,0.00165235,96600.0,96599.0,0.20704148]
[1763132292837,0.00165235,96600.0,96596.0,0.002]
[1763132292838,0.13087235,96600.0,96596.0,0.002]
[1763132293067,0.00972,96590.0,96581.0,0.20707807]
[1763132293291,0.04957,96597.0,96594.0,0.20705025]
[1763132293505,0.04957,96597.0,96596.0,0.20704791]
[1763132294209,0.07061235,96600.0,96599.0,0.20704148]
[1763132294658,0.00165235,96600.0,96599.0,0.20704148]
[1763132295746,0.00165235,96600.0,96599.0,0.29905148]
[1763132296155,0.00165235,96600.0,96599.0,0.29805148]
[1763132296608,0.00165235,96600.0,96598.0,0.10479654]
[1763132296609,0.01035303,96590.0,96555.0,0.04895]
[1763132296812,0.00972,96560.0,96550.0,0.85753299]
[1763132296965,0.01936144,96590.0,96570.0,0.01035518]
[1763132296966,0.00972,96590.0,96570.0,0.01035518]
[1763132297323,0.00972,96590.0,96589.0,0.20706291]
[1763132297565,0.07996,96597.0,96592.0,0.20705475]
[1763132297809,0.07996,96597.0,96596.0,0.20704791]
[1763132298038,0.07996,96597.0,96580.0,0.84717567]
[1763132298267,0.06892,96597.0,96596.0,0.20704791]
[1763132298475,0.0012,96600.0,96599.0,0.20704148]
[1763132300475,0.01092,96600.0,96581.0,0.17371654]
[1763132300660,0.20707792,96582.0,96550.0,0.01035732]
[1763132300862,0.01035411,96580.0,96551.0,0.0103163]
[1763132301092,0.01035411,96580.0,96551.0,0.21745968]
[1763132301093,0.06892,96579.0,96551.0,0.21745968]
[1763132301291,0.06892,96579.0,96551.0,0.0103163]
[1763132301292,0.2071281,96559.0,96551.0,0.0103163]
[1763132301466,0.2071281,96559.0,96548.0,0.20714941]
[1763132301467,0.00972,96550.0,96548.0,0.20714941]
[1763132301688,0.06892,96558.0,96549.0,0.01033026]
[1763132301689,0.11849,96558.0,96549.0,0.01033026]
[1763132301891,0.11849,96558.0,96530.0,0.85753514]
[1763132301892,0.09868,96557.0,96530.0,0.85753514]
[1763132302163,0.00972,96540.0,96539.0,0.20717015]
[1763132302303,0.00972,96530.0,96520.0,0.01036054]
[1763132302504,0.00972,96530.0,96529.0,0.20719162]
[1763132302752,0.06892,96540.0,96520.0,0.01036054]
[1763132302753,0.09868,96529.0,96520.0,0.00013578]
[1763132302928,0.04957,96521.0,96520.0,0.00013578]
[1763132303145,0.06892,96521.0,96520.0,0.00013578]
[1763132303508,0.04957,96538.0,96537.0,0.20717445]
[1763132303685,0.11849,96538.0,96537.0,0.20717445]
[1763132304297,0.00972,96530.0,96520.0,0.00013578]
[1763132304652,0.00972,96530.0,96529.0,0.001]
[1763132304866,0.00972,96530.0,96525.0,0.20719808]
[1763132305033,0.00972,96530.0,96528.0,0.20719287]
[1763132305418,0.00972,96530.0,96526.0,0.02073339]
[1763132305419,0.11849,96538.0,96537.0,0.20717445]
[1763132305620,0.11849,96538.0,96526.0,0.02073339]
[1763132305621,0.11849,96538.0,96530.0,0.20718809]
[1763132305843,0.00972,96530.0,96529.0,0.20719162]
[1763132306005,0.00972,96530.0,96526.0,0.02073339]
[1763132306203,0.00972,96530.0,96520.0,0.00013578]
[1763132306204,0.2072067,96522.0,96520.0,0.00013578]
[1763132306472,0.12985,96521.0,96520.0,0.00013578]
[1763132306671,0.06892,96521.0,96520.0,0.00013578]
[1763132306807,0.06892,96521.0,96520.0,0.0104816]
[1763132307012,0.06892,96521.0,96520.0,0.00013578]
[1763132307215,0.13428,96521.0,96520.0,0.00013578]
[1763132307641,0.20724959,96502.0,96480.0,0.37715452]
[1763132307837,0.12972,96502.0,96501.0,0.00216078]
[1763132308068,0.06892,96502.0,96501.0,0.00216078]
[1763132308497,0.20723649,96509.0,96501.0,0.00216078]
[1763132308498,0.04957,96518.0,96510.0,0.01036162]
[1763132308691,0.09868,96526.0,96515.0,0.20721972]
[1763132308692,0.06892,96517.0,96515.0,0.20721972]
[1763132309852,0.06892,96517.0,96509.0,0.20723425]
[1763132309853,0.00972,96510.0,96501.0,0.00216078]
[1763132310055,0.09868,96516.0,96515.0,0.20722167]
[1763132310262,0.20722473,96514.0,96501.0,0.00216078]
[1763132310463,0.20723455,96509.0,96501.0,0.00216078]
[1763132310672,0.20724959,96502.0,96501.0,0.00216078]
[1763132310895,0.27616959,96502.0,96501.0,0.00216078]
[1763132311880,0.27616959,96502.0,96501.0,0.00316078]
[1763132312325,0.20724959,96502.0,96501.0,0.00216078]
[1763132312525,0.40060959,96502.0,96501.0,0.00216078]
[1763132312700,0.76802833,96502.0,96501.0,0.00216078]
[1763132313081,0.82936833,96502.0,96501.0,0.00216078]
[1763132313286,0.63700833,96502.0,96501.0,0.00216078]
[1763132313491,0.01036269,96500.0,96460.0,0.37715667]
[1763132313688,0.06134,96481.0,96461.0,0.03771567]
[1763132313998,0.37728785,96500.0,96461.0,0.03771567]
[1763132313999,0.00013548,96500.0,96499.0,0.20725603]
[1763132314223,0.06905548,96500.0,96499.0,0.20725603]
[1763132314680,0.07005548,96500.0,96499.0,0.20725603]
[1763132315475,0.07005548,96500.0,96498.0,0.10479654]
[1763132315691,0.07005548,96500.0,96499.0,0.20725603]
[1763132315925,0.06905548,96500.0,96499.0,0.20725603]
[1763132316071,0.07005548,96500.0,96499.0,0.20725603]
[1763132316455,0.06905548,96500.0,96499.0,0.20725603]
[1763132317218,0.07877548,96500.0,96499.0,0.20725603]
[1763132317441,0.07877548,96500.0,96499.0,0.29018482]
[1763132317684,0.00013548,96500.0,96499.0,0.20725603]
[1763132318110,0.06905548,96500.0,96499.0,0.20725603]
[1763132319238,0.14011548,96500.0,96498.0,0.20725646]
[1763132319490,0.00985548,96500.0,96499.0,0.001]
[1763132319698,0.07877548,96500.0,96499.0,0.001]
[1763132319894,0.14011548,96500.0,96499.0,0.001]
[1763132320135,0.06905548,96500.0,96499.0,0.001]
[1763132320345,0.20726892,96493.0,96470.0,0.36678968]
[1763132320553,0.20726677,96494.0,96460.0,0.01036699]
[1763132320822,0.06892,96493.0,96480.0,0.57408438]
[1763132321015,0.00013548,96500.0,96499.0,0.20725603]
[1763132321206,0.06905548,96500.0,96499.0,0.31205257]
[1763132321411,0.00013548,96500.0,96499.0,0.31205257]
[1763132321614,0.00013548,96500.0,96499.0,0.32783967]
[1763132322302,0.00213548,96500.0,96499.0,0.32783967]
[1763132322664,0.00013548,96500.0,96499.0,0.32783967]
[1763132322864,0.00013548,96500.0,96499.0,0.31205257]
[1763132324792,0.06855549,96501.0,96499.0,0.63505257]
[1763132325126,0.06855549,96501.0,96500.0,0.323]